[Event "Early-Titled-Tuesday-Blitz-February-06-2024"]
[Site "Chess.com"]
[Date "2024.02.06"]
[Round "1"]
[White "kingofthenil"]
[Black "GMCorinnaKopff"]
[Result "1-0"]
[WhiteElo "2654"]
[BlackElo "2338"]
[TimeControl "180+1"]
[EndTime "8:08:41 PST"]
[Termination "kingofthenil won by resignation"]

1. d4 {[%clk 0:03:00.9]} 1... Nf6 {[%clk 0:02:52.1]} 2. c4 {[%clk 0:03:00.4]}
2... g6 {[%clk 0:02:43.9]} 3. Nf3 {[%clk 0:02:57.4]} 3... Bg7 {[%clk 0:02:43.7]}
4. g3 {[%clk 0:02:58.1]} 4... d6 {[%clk 0:02:43.6]} 5. Bg2 {[%clk 0:02:58.5]}
5... O-O {[%clk 0:02:44.3]} 6. O-O {[%clk 0:02:58.8]} 6... Nc6 {[%clk
0:02:44.7]} 7. Nc3 {[%clk 0:02:58.1]} 7... a6 {[%clk 0:02:43.5]} 8. h3 {[%clk
0:02:57.6]} 8... Rb8 {[%clk 0:02:42.7]} 9. Qc2 {[%clk 0:02:16.3]} 9... Bd7
{[%clk 0:02:33.8]} 10. a3 {[%clk 0:02:10.9]} 10... b5 {[%clk 0:02:25.9]} 11. Nd5
{[%clk 0:02:11]} 11... Na5 {[%clk 0:02:20.9]} 12. Nxf6+ {[%clk 0:02:06.4]} 12...
Bxf6 {[%clk 0:02:21.8]} 13. c5 {[%clk 0:02:02.6]} 13... e5 {[%clk 0:02:08.9]}
14. dxe5 {[%clk 0:01:53]} 14... dxe5 {[%clk 0:02:08.8]} 15. Bh6 {[%clk
0:01:48.5]} 15... Re8 {[%clk 0:02:08.5]} 16. Nd2 {[%clk 0:01:49]} 16... Qe7
{[%clk 0:02:01.6]} 17. b4 {[%clk 0:01:36.1]} 17... Nc6 {[%clk 0:01:57.4]} 18.
Ne4 {[%clk 0:01:32]} 18... Bh8 {[%clk 0:01:33.6]} 19. Rad1 {[%clk 0:01:16.7]}
19... Nd4 {[%clk 0:01:29.5]} 20. Qb2 {[%clk 0:01:16.2]} 20... Ne6 {[%clk
0:01:14.9]} 21. h4 {[%clk 0:01:07.9]} 21... f5 {[%clk 0:00:57.9]} 22. Nc3 {[%clk
0:00:47.4]} 22... e4 {[%clk 0:00:50.2]} 23. Qb3 {[%clk 0:00:46.9]} 23... Qf7
{[%clk 0:00:46.8]} 24. Nd5 {[%clk 0:00:47]} 24... Bc6 {[%clk 0:00:44.1]} 25. e3
{[%clk 0:00:43.8]} 25... Rbd8 {[%clk 0:00:43.5]} 26. Rd2 {[%clk 0:00:40.9]}
26... Rd7 {[%clk 0:00:32.1]} 27. Rfd1 {[%clk 0:00:39.7]} 27... Red8 {[%clk
0:00:32.7]} 28. Qa2 {[%clk 0:00:32.9]} 28... Be5 {[%clk 0:00:25.9]} 29. Bf1
{[%clk 0:00:13.8]} 29... Bg7 {[%clk 0:00:20.8]} 30. Bxg7 {[%clk 0:00:13.2]}
30... Kxg7 {[%clk 0:00:21.7]} 31. Qb2+ {[%clk 0:00:13.3]} 31... Kg8 {[%clk
0:00:20.2]} 32. Nc3 {[%clk 0:00:09.4]} 32... Rxd2 {[%clk 0:00:19.2]} 33. Rxd2
{[%clk 0:00:10.3]} 33... Rxd2 {[%clk 0:00:19.4]} 34. Qxd2 {[%clk 0:00:11.2]}
34... Qd7 {[%clk 0:00:19.3]} 35. Qxd7 {[%clk 0:00:07.8]} 35... Bxd7 {[%clk
0:00:20.2]} 36. Nd5 {[%clk 0:00:08.6]} 36... Kf7 {[%clk 0:00:19]} 37. Be2 {[%clk
0:00:09]} 37... Bc6 {[%clk 0:00:18.7]} 38. Nc3 {[%clk 0:00:08.8]} 38... Bd7
{[%clk 0:00:16.9]} 39. Nd5 {[%clk 0:00:06.2]} 39... Bc6 {[%clk 0:00:16.8]} 40.
Nc3 {[%clk 0:00:06.8]} 40... Kf6 {[%clk 0:00:17.3]} 41. Bd1 {[%clk 0:00:05.7]}
41... Ke5 {[%clk 0:00:17.2]} 42. Bb3 {[%clk 0:00:05.9]} 42... Nd8 {[%clk
0:00:15.7]} 43. Kf1 {[%clk 0:00:04.9]} 43... Bd7 {[%clk 0:00:15.7]} 44. Bg8
{[%clk 0:00:04]} 44... h6 {[%clk 0:00:15.2]} 45. Ke2 {[%clk 0:00:03.4]} 45...
Be6 {[%clk 0:00:13.8]} 46. Bxe6 {[%clk 0:00:03.2]} 46... Nxe6 {[%clk 0:00:13.4]}
47. Kd2 {[%clk 0:00:03.9]} 47... Nd8 {[%clk 0:00:12.8]} 48. Ne2 {[%clk
0:00:04.2]} 48... Nc6 {[%clk 0:00:12.3]} 49. Nf4 {[%clk 0:00:03.7]} 49... g5
{[%clk 0:00:11.6]} 50. hxg5 {[%clk 0:00:03.3]} 50... hxg5 {[%clk 0:00:12.5]} 51.
Nh3 {[%clk 0:00:03.9]} 51... Kf6 {[%clk 0:00:12.1]} 52. Kc3 {[%clk 0:00:03.3]}
52... Ne5 {[%clk 0:00:12.4]} 53. Kd4 {[%clk 0:00:02.5]} 53... Nd3 {[%clk
0:00:12.1]} 54. Kd5 {[%clk 0:00:02.6]} 54... g4 {[%clk 0:00:10.7]} 55. Nf4
{[%clk 0:00:03.1]} 55... Nxf2 {[%clk 0:00:11.6]} 56. Kc6 {[%clk 0:00:03.4]}
56... Nd1 {[%clk 0:00:11.7]} 57. Ng2 {[%clk 0:00:03.5]} 57... Ke5 {[%clk
0:00:11.2]} 58. Kxc7 {[%clk 0:00:03.7]} 58... Nb2 {[%clk 0:00:09.7]} 59. Kb7
{[%clk 0:00:03.7]} 59... Nc4 {[%clk 0:00:09.9]} 60. c6 {[%clk 0:00:04.1]} 60...
Nd6+ {[%clk 0:00:09.8]} 61. Kxa6 {[%clk 0:00:04.5]} 61... f4 {[%clk 0:00:10.5]}
62. Nxf4 {[%clk 0:00:04.5]} 62... Nc4 {[%clk 0:00:08.6]} 63. c7 {[%clk
0:00:04.8]} 63... Nd6 {[%clk 0:00:07.9]} 64. Kb6 {[%clk 0:00:05.2]} 64... Kf6
{[%clk 0:00:08.1]} 65. Kc6 {[%clk 0:00:05.2]} 65... Ke7 {[%clk 0:00:09]} 66.
Ng6+ {[%clk 0:00:05.2]} 66... Ke6 {[%clk 0:00:08.8]} 67. Nf4+ {[%clk 0:00:05.1]}
67... Ke7 {[%clk 0:00:08.9]} 68. Nd5+ {[%clk 0:00:05.8]} 68... Ke6 {[%clk
0:00:09.1]} 69. Nc3 {[%clk 0:00:06.7]} 69... Ke7 {[%clk 0:00:08.7]} 70. Nxb5
{[%clk 0:00:07.6]} 70... Nc8 {[%clk 0:00:09.2]} 71. Nc3 {[%clk 0:00:07.7]} 71...
Ke8 {[%clk 0:00:09.3]} 72. b5 {[%clk 0:00:08.6]} 72... Ke7 {[%clk 0:00:09.1]}
73. b6 {[%clk 0:00:09.5]} 73... Nxb6 {[%clk 0:00:09.5]} 74. Kxb6 {[%clk
0:00:09.8]} 1-0

[Event "Early-Titled-Tuesday-Blitz-February-06-2024"]
[Site "Chess.com"]
[Date "2024.02.06"]
[Round "1"]
[White "ri4mi"]
[Black "FMStan15"]
[Result "1-0"]
[WhiteElo "2548"]
[BlackElo "2009"]
[TimeControl "180+1"]
[EndTime "8:08:41 PST"]
[Termination "ri4mi won on time"]

1. e4 {[%clk 0:03:00.9]} 1... e6 {[%clk 0:03:00.2]} 2. d4 {[%clk 0:03:00.5]}
2... d5 {[%clk 0:03:00.5]} 3. Nc3 {[%clk 0:03:00.2]} 3... Bb4 {[%clk 0:02:59.7]}
4. e5 {[%clk 0:03:00.6]} 4... c5 {[%clk 0:02:59.3]} 5. a3 {[%clk 0:03:00]} 5...
Bxc3+ {[%clk 0:02:59.2]} 6. bxc3 {[%clk 0:03:00.9]} 6... Qc7 {[%clk 0:02:59.5]}
7. Qg4 {[%clk 0:02:59.8]} 7... f5 {[%clk 0:02:59.6]} 8. Qh5+ {[%clk 0:02:59.1]}
8... Qf7 {[%clk 0:02:58.6]} 9. Qxf7+ {[%clk 0:02:59.3]} 9... Kxf7 {[%clk
0:02:58.4]} 10. Nf3 {[%clk 0:03:00.2]} 10... h6 {[%clk 0:02:58.5]} 11. h4 {[%clk
0:02:58.1]} 11... cxd4 {[%clk 0:02:57.4]} 12. cxd4 {[%clk 0:02:58]} 12... Ne7
{[%clk 0:02:57.7]} 13. h5 {[%clk 0:02:55.1]} 13... b6 {[%clk 0:02:55]} 14. a4
{[%clk 0:02:53.1]} 14... Ba6 {[%clk 0:02:54.3]} 15. a5 {[%clk 0:02:51.8]} 15...
Bxf1 {[%clk 0:02:44.8]} 16. Rxf1 {[%clk 0:02:48.9]} 16... bxa5 {[%clk
0:02:43.8]} 17. Rxa5 {[%clk 0:02:45.8]} 17... Nbc6 {[%clk 0:02:43.8]} 18. Ra4
{[%clk 0:02:36.1]} 18... Rhc8 {[%clk 0:02:42.6]} 19. Ba3 {[%clk 0:02:31.4]}
19... Rab8 {[%clk 0:02:35.6]} 20. Kd2 {[%clk 0:02:23.5]} 20... f4 {[%clk
0:02:30.4]} 21. g4 {[%clk 0:02:08.8]} 21... fxg3 {[%clk 0:02:20]} 22. fxg3
{[%clk 0:02:09.7]} 22... Kg8 {[%clk 0:02:17.2]} 23. g4 {[%clk 0:02:05.4]} 23...
Rb7 {[%clk 0:02:12.2]} 24. Bc5 {[%clk 0:02:02]} 24... Rf8 {[%clk 0:02:09.3]} 25.
Ra3 {[%clk 0:01:40.5]} 25... Rf4 {[%clk 0:02:06.2]} 26. Rg1 {[%clk 0:01:36]}
26... Na5 {[%clk 0:01:42.8]} 27. Rxa5 {[%clk 0:01:31.7]} 27... Rxf3 {[%clk
0:01:42.1]} 28. Rxa7 {[%clk 0:01:20.7]} 28... Rxa7 {[%clk 0:01:40]} 29. Bxa7
{[%clk 0:01:21.6]} 29... Nc6 {[%clk 0:01:38.5]} 30. Bc5 {[%clk 0:01:21.4]} 30...
Na5 {[%clk 0:01:38.1]} 31. Ke2 {[%clk 0:01:10.2]} 31... Rh3 {[%clk 0:01:19.6]}
32. Rf1 {[%clk 0:01:04]} 32... Rh2+ {[%clk 0:01:12.2]} 33. Kd1 {[%clk
0:00:59.9]} 33... Nc4 {[%clk 0:01:10]} 34. Rf8+ {[%clk 0:00:56.8]} 34... Kh7
{[%clk 0:01:09.3]} 35. Re8 {[%clk 0:00:55.2]} 35... Ne3+ {[%clk 0:01:08.5]} 36.
Kc1 {[%clk 0:00:51.6]} 36... Rxc2+ {[%clk 0:00:58.6]} 37. Kb1 {[%clk 0:00:51.9]}
37... Rf2 {[%clk 0:00:52.9]} 38. Rxe6 {[%clk 0:00:48.4]} 38... Nxg4 {[%clk
0:00:49.5]} 39. Rg6 {[%clk 0:00:38.9]} 39... Rf4 {[%clk 0:00:27.1]} 40. Kc2
{[%clk 0:00:31.8]} 40... Re4 {[%clk 0:00:25.8]} 41. Kc3 {[%clk 0:00:16.9]} 41...
Re3+ {[%clk 0:00:23.9]} 42. Kb4 {[%clk 0:00:16.9]} 42... Re4 {[%clk 0:00:20.3]}
43. Kb5 {[%clk 0:00:17.1]} 43... Ne3 {[%clk 0:00:18.6]} 44. Kc6 {[%clk
0:00:11.2]} 44... Rh4 {[%clk 0:00:13.6]} 45. e6 {[%clk 0:00:10.1]} 45... Nf5
{[%clk 0:00:13.3]} 46. e7 {[%clk 0:00:07.5]} 46... Nxe7+ {[%clk 0:00:11.4]} 47.
Bxe7 {[%clk 0:00:08.4]} 47... Rxh5 {[%clk 0:00:11.1]} 48. Re6 {[%clk 0:00:08.3]}
48... Rh1 {[%clk 0:00:09.9]} 49. Kxd5 {[%clk 0:00:08.3]} 49... g5 {[%clk
0:00:09.5]} 50. Re2 {[%clk 0:00:06.3]} 50... g4 {[%clk 0:00:07.4]} 51. Ke4
{[%clk 0:00:06.2]} 51... h5 {[%clk 0:00:06.2]} 52. d5 {[%clk 0:00:06.5]} 52...
Rd1 {[%clk 0:00:04.9]} 53. d6 {[%clk 0:00:06.6]} 53... g3 {[%clk 0:00:04.5]} 54.
Kf3 {[%clk 0:00:06.6]} 54... Rd3+ {[%clk 0:00:03.5]} 55. Kg2 {[%clk 0:00:05.9]}
55... Kg6 {[%clk 0:00:03]} 56. Re6+ {[%clk 0:00:02.7]} 56... Kf5 {[%clk
0:00:03.1]} 57. Rf6+ {[%clk 0:00:02.4]} 57... Kg4 {[%clk 0:00:03]} 58. Rg6+
{[%clk 0:00:02.4]} 58... Kf4 {[%clk 0:00:02.9]} 59. Kh3 {[%clk 0:00:01.3]} 59...
Rd2 {[%clk 0:00:01.9]} 60. Rf6+ {[%clk 0:00:01.6]} 1-0

[Event "Early-Titled-Tuesday-Blitz-February-06-2024"]
[Site "Chess.com"]
[Date "2024.02.06"]
[Round "1"]
[White "Sokoloco"]
[Black "ccccvhhhj"]
[Result "1-0"]
[WhiteElo "2787"]
[BlackElo "2437"]
[TimeControl "180+1"]
[EndTime "8:08:46 PST"]
[Termination "Sokoloco won on time"]

1. b3 {[%clk 0:02:46]} 1... d5 {[%clk 0:02:56.9]} 2. Nf3 {[%clk 0:02:43.3]} 2...
Nf6 {[%clk 0:02:53.6]} 3. e3 {[%clk 0:02:41.3]} 3... c5 {[%clk 0:02:50.4]} 4. d4
{[%clk 0:02:38.7]} 4... Nc6 {[%clk 0:02:48.1]} 5. Bb2 {[%clk 0:02:26.1]} 5...
Bg4 {[%clk 0:02:48.4]} 6. Bb5 {[%clk 0:02:23.8]} 6... e6 {[%clk 0:02:43.4]} 7.
h3 {[%clk 0:02:10.4]} 7... Bh5 {[%clk 0:02:43.4]} 8. g4 {[%clk 0:02:10]} 8...
Bg6 {[%clk 0:02:44.1]} 9. Ne5 {[%clk 0:02:10.5]} 9... Qb6 {[%clk 0:02:42.3]} 10.
Nc3 {[%clk 0:02:01.3]} 10... cxd4 {[%clk 0:02:28]} 11. exd4 {[%clk 0:02:00.1]}
11... Bb4 {[%clk 0:02:24.4]} 12. Bxc6+ {[%clk 0:01:10]} 12... bxc6 {[%clk
0:02:25.3]} 13. f3 {[%clk 0:01:10.5]} 13... c5 {[%clk 0:02:04.2]} 14. a3 {[%clk
0:01:10]} 14... Ba5 {[%clk 0:01:48.8]} 15. dxc5 {[%clk 0:01:01]} 15... Qxc5
{[%clk 0:01:40.8]} 16. b4 {[%clk 0:01:01.2]} 16... Qe3+ {[%clk 0:01:40.7]} 17.
Qe2 {[%clk 0:01:01.6]} 17... Qxe2+ {[%clk 0:01:40.3]} 18. Kxe2 {[%clk
0:01:02.5]} 18... Bc7 {[%clk 0:01:39.3]} 19. Nb5 {[%clk 0:01:00]} 19... Bb8
{[%clk 0:01:11.5]} 20. Nc6 {[%clk 0:00:53]} 20... O-O {[%clk 0:01:06.9]} 21.
Nxb8 {[%clk 0:00:30.3]} 21... Raxb8 {[%clk 0:01:07.8]} 22. Nxa7 {[%clk 0:00:30]}
22... Bxc2 {[%clk 0:01:08.5]} 23. Rhc1 {[%clk 0:00:26.5]} 23... Bb3 {[%clk
0:01:06.4]} 24. Nc6 {[%clk 0:00:26.9]} 24... Bc4+ {[%clk 0:01:02]} 25. Ke3
{[%clk 0:00:27]} 25... Ra8 {[%clk 0:00:58.9]} 26. Ne5 {[%clk 0:00:26.3]} 26...
Bb5 {[%clk 0:00:44.6]} 27. Rc5 {[%clk 0:00:24.2]} 27... Rfb8 {[%clk 0:00:39.1]}
28. Rac1 {[%clk 0:00:23]} 28... h6 {[%clk 0:00:39.7]} 29. h4 {[%clk 0:00:23]}
29... Ba4 {[%clk 0:00:32.8]} 30. g5 {[%clk 0:00:21.4]} 30... hxg5 {[%clk
0:00:27.4]} 31. hxg5 {[%clk 0:00:22.3]} 31... Ne8 {[%clk 0:00:27.7]} 32. g6
{[%clk 0:00:17.1]} 32... f6 {[%clk 0:00:23.2]} 33. Nf7 {[%clk 0:00:17.8]} 33...
Kf8 {[%clk 0:00:13.8]} 34. f4 {[%clk 0:00:17.5]} 34... Ke7 {[%clk 0:00:12.5]}
35. f5 {[%clk 0:00:18.1]} 35... exf5 {[%clk 0:00:10.5]} 36. Kf4 {[%clk
0:00:13.1]} 36... Bb3 {[%clk 0:00:04.5]} 37. Re1+ {[%clk 0:00:11.2]} 37... Kd7
{[%clk 0:00:05.1]} 38. Rd1 {[%clk 0:00:03.2]} 38... Rc8 {[%clk 0:00:04.6]} 39.
Rdc1 {[%clk 0:00:03.2]} 39... Rxc5 {[%clk 0:00:04.1]} 40. Rxc5 {[%clk
0:00:04.1]} 40... Rc8 {[%clk 0:00:02.5]} 41. Ra5 {[%clk 0:00:02.9]} 41... Rc2
{[%clk 0:00:02.5]} 42. Ra7+ {[%clk 0:00:03.6]} 42... Kc6 {[%clk 0:00:02.6]} 43.
Bd4 {[%clk 0:00:03.9]} 43... Rd2 {[%clk 0:00:02.7]} 44. Bc5 {[%clk 0:00:04.4]}
44... Kb5 {[%clk 0:00:02.4]} 45. Nd8 {[%clk 0:00:04.6]} 45... Kc4 {[%clk
0:00:02.3]} 46. Re7 {[%clk 0:00:05.3]} 46... Nd6 {[%clk 0:00:01.5]} 47. Bxd6
{[%clk 0:00:05.5]} 47... d4 {[%clk 0:00:02.4]} 48. Bc5 {[%clk 0:00:06]} 48... d3
{[%clk 0:00:03.3]} 49. Nc6 {[%clk 0:00:06.2]} 49... Rd1 {[%clk 0:00:04.2]} 50.
Nd4 {[%clk 0:00:06.3]} 50... d2 {[%clk 0:00:04.4]} 51. Nf3 {[%clk 0:00:06.7]}
51... Rf1 {[%clk 0:00:04.9]} 52. Rd7 {[%clk 0:00:04.9]} 52... d1=Q {[%clk
0:00:05.8]} 53. Rxd1 {[%clk 0:00:05.3]} 53... Rxd1 {[%clk 0:00:06.7]} 54. Bf8
{[%clk 0:00:05.6]} 54... Rf1 {[%clk 0:00:07.1]} 55. Ke3 {[%clk 0:00:05]} 55...
Bd1 {[%clk 0:00:07.5]} 56. Nd2+ {[%clk 0:00:05.6]} 56... Kb5 {[%clk 0:00:07]}
57. Nxf1 {[%clk 0:00:06.5]} 57... Bb3 {[%clk 0:00:06]} 58. Bxg7 {[%clk
0:00:06.6]} 58... Ka4 {[%clk 0:00:03.8]} 59. Bxf6 {[%clk 0:00:06.4]} 59... Kxa3
{[%clk 0:00:03.9]} 60. Be7 {[%clk 0:00:07.1]} 60... Ka4 {[%clk 0:00:03.1]} 61.
Nd2 {[%clk 0:00:07.7]} 61... Bg8 {[%clk 0:00:02]} 62. g7 {[%clk 0:00:08.3]}
62... Kb5 {[%clk 0:00:02.3]} 63. Kd4 {[%clk 0:00:09]} 63... Kc6 {[%clk
0:00:02.7]} 64. Ke5 {[%clk 0:00:09.7]} 64... Kd7 {[%clk 0:00:01.6]} 65. Bf8
{[%clk 0:00:10.5]} 65... f4 {[%clk 0:00:01.7]} 66. Kxf4 {[%clk 0:00:10.8]} 66...
Ke6 {[%clk 0:00:02.6]} 67. Ke4 {[%clk 0:00:10.9]} 67... Kd7 {[%clk 0:00:02.7]}
68. Kd4 {[%clk 0:00:11.4]} 68... Kc6 {[%clk 0:00:03.6]} 69. Ne4 {[%clk
0:00:10.6]} 69... Kb5 {[%clk 0:00:04]} 70. Nf6 {[%clk 0:00:11.4]} 70... Bf7
{[%clk 0:00:03.9]} 71. g8=Q {[%clk 0:00:11.8]} 71... Bxg8 {[%clk 0:00:04.6]} 72.
Nxg8 {[%clk 0:00:12.7]} 1-0

[Event "Early-Titled-Tuesday-Blitz-February-06-2024"]
[Site "Chess.com"]
[Date "2024.02.06"]
[Round "1"]
[White "xamax2000"]
[Black "ploxoi"]
[Result "1-0"]
[WhiteElo "2852"]
[BlackElo "2468"]
[TimeControl "180+1"]
[EndTime "8:08:47 PST"]
[Termination "xamax2000 won by resignation"]

1. Nf3 {[%clk 0:02:58.1]} 1... d5 {[%clk 0:02:59.5]} 2. g3 {[%clk 0:02:53.8]}
2... c6 {[%clk 0:02:59.6]} 3. Bg2 {[%clk 0:02:52.5]} 3... Nf6 {[%clk 0:03:00]}
4. c4 {[%clk 0:02:51.6]} 4... Bf5 {[%clk 0:02:57.5]} 5. Qb3 {[%clk 0:02:51]}
5... Qb6 {[%clk 0:02:55.8]} 6. d3 {[%clk 0:02:51.3]} 6... e6 {[%clk 0:02:53.4]}
7. Be3 {[%clk 0:02:51.8]} 7... Qb4+ {[%clk 0:02:31.6]} 8. Bd2 {[%clk 0:02:48.1]}
8... Qb6 {[%clk 0:02:30.1]} 9. Be3 {[%clk 0:02:28.4]} 9... Qb4+ {[%clk
0:02:29.1]} 10. Nbd2 {[%clk 0:02:22.8]} 10... Nbd7 {[%clk 0:02:26.6]} 11. Bd4
{[%clk 0:02:17.6]} 11... a5 {[%clk 0:02:19.3]} 12. Bc3 {[%clk 0:02:12.7]} 12...
Qb6 {[%clk 0:02:12.6]} 13. O-O {[%clk 0:02:09.5]} 13... a4 {[%clk 0:02:03]} 14.
Qc2 {[%clk 0:02:06.6]} 14... Bc5 {[%clk 0:02:00.9]} 15. e3 {[%clk 0:01:45.7]}
15... h6 {[%clk 0:01:53.9]} 16. b4 {[%clk 0:01:29.7]} 16... axb3 {[%clk
0:01:54]} 17. axb3 {[%clk 0:01:28.4]} 17... O-O {[%clk 0:01:54.1]} 18. Rfe1
{[%clk 0:00:52]} 18... Bg6 {[%clk 0:01:48.1]} 19. Bf1 {[%clk 0:00:50.4]} 19...
Rfe8 {[%clk 0:01:46]} 20. Qb2 {[%clk 0:00:50]} 20... Bb4 {[%clk 0:01:36.3]} 21.
d4 {[%clk 0:00:40]} 21... Bxc3 {[%clk 0:01:12.3]} 22. Qxc3 {[%clk 0:00:40.9]}
22... c5 {[%clk 0:01:12.9]} 23. Bg2 {[%clk 0:00:34]} 23... Rec8 {[%clk
0:01:00.9]} 24. Rxa8 {[%clk 0:00:24.6]} 24... Rxa8 {[%clk 0:01:00.6]} 25. Ne5
{[%clk 0:00:25.2]} 25... Nxe5 {[%clk 0:00:27.8]} 26. dxe5 {[%clk 0:00:26.1]}
26... d4 {[%clk 0:00:28.5]} 27. exd4 {[%clk 0:00:26.3]} 27... cxd4 {[%clk
0:00:29.4]} 28. Qf3 {[%clk 0:00:26.6]} 28... Nd7 {[%clk 0:00:27.8]} 29. Qxb7
{[%clk 0:00:26.3]} 29... Qxb7 {[%clk 0:00:25.1]} 30. Bxb7 {[%clk 0:00:27.2]}
30... Rb8 {[%clk 0:00:25.5]} 31. Bc6 {[%clk 0:00:23.4]} 31... Nc5 {[%clk
0:00:25]} 32. Bb5 {[%clk 0:00:18]} 32... Bc2 {[%clk 0:00:22.2]} 33. Nf3 {[%clk
0:00:05.2]} 33... Nxb3 {[%clk 0:00:18.7]} 34. Ba6 {[%clk 0:00:02.8]} 34... d3
{[%clk 0:00:18.3]} 35. c5 {[%clk 0:00:03.4]} 35... Nxc5 {[%clk 0:00:17.2]} 36.
Bc4 {[%clk 0:00:02.6]} 36... Rb4 {[%clk 0:00:17]} 37. Nd2 {[%clk 0:00:03.3]}
37... Ba4 {[%clk 0:00:14]} 38. f4 {[%clk 0:00:03.3]} 38... Rb2 {[%clk
0:00:14.2]} 39. Nf3 {[%clk 0:00:01]} 39... d2 {[%clk 0:00:13.5]} 40. Nxd2 {[%clk
0:00:01.7]} 40... Rxd2 {[%clk 0:00:14.4]} 41. Bf1 {[%clk 0:00:01.8]} 41... Bc6
{[%clk 0:00:14.5]} 42. Rc1 {[%clk 0:00:02.5]} 42... Rd5 {[%clk 0:00:10.4]} 43.
Bg2 {[%clk 0:00:02.7]} 43... Nd3 {[%clk 0:00:07.8]} 44. Rxc6 {[%clk 0:00:03]}
44... Rd4 {[%clk 0:00:07.6]} 45. Rc8+ {[%clk 0:00:02.7]} 45... Kh7 {[%clk
0:00:08.1]} 46. h4 {[%clk 0:00:02.2]} 46... h5 {[%clk 0:00:07.9]} 47. Bf3 {[%clk
0:00:02.7]} 47... g6 {[%clk 0:00:07.9]} 48. Kf1 {[%clk 0:00:03.3]} 48... Kg7
{[%clk 0:00:08.4]} 49. Rc7 {[%clk 0:00:03.7]} 49... Nb4 {[%clk 0:00:08.4]} 50.
Ke2 {[%clk 0:00:03.3]} 50... Rd3 {[%clk 0:00:08.7]} 51. Rb7 {[%clk 0:00:02.3]}
51... Rb3 {[%clk 0:00:09.1]} 52. Be4 {[%clk 0:00:02.5]} 52... Rb2+ {[%clk
0:00:09.7]} 53. Kd1 {[%clk 0:00:02.7]} 53... Nd3 {[%clk 0:00:07.6]} 54. Rxb2
{[%clk 0:00:01.5]} 54... Nxb2+ {[%clk 0:00:08.5]} 55. Ke2 {[%clk 0:00:02.2]}
55... Na4 {[%clk 0:00:08.4]} 56. Kd3 {[%clk 0:00:02.1]} 56... Nc5+ {[%clk
0:00:08.4]} 57. Kd4 {[%clk 0:00:02.8]} 57... Nb3+ {[%clk 0:00:09.1]} 58. Kc4
{[%clk 0:00:02.5]} 58... Nd2+ {[%clk 0:00:09.1]} 59. Kd3 {[%clk 0:00:03.2]}
59... Nf1 {[%clk 0:00:09.8]} 60. Bf3 {[%clk 0:00:02.2]} 60... Nxg3 {[%clk
0:00:10]} 61. Be4 {[%clk 0:00:01.6]} 61... Nxe4 {[%clk 0:00:08.6]} 62. Kxe4
{[%clk 0:00:02.5]} 62... f6 {[%clk 0:00:09.2]} 63. Kd4 {[%clk 0:00:02.2]} 63...
fxe5+ {[%clk 0:00:08.8]} 64. Kxe5 {[%clk 0:00:03.1]} 64... Kh6 {[%clk
0:00:09.5]} 65. Kxe6 {[%clk 0:00:01.8]} 65... Kg7 {[%clk 0:00:10.1]} 66. Ke7
{[%clk 0:00:02.2]} 66... g5 {[%clk 0:00:10]} 67. fxg5 {[%clk 0:00:02.2]} 1-0